fUST/lending_fUST_20260118
["ID","MTS","AMOUNT","RATE_DAILY","PERIOD"]
[402513110,1768691456164,-938.59,0.00016712,3]
[402513111,1768691456174,-500.0,0.00016712,3]
[402513112,1768691456183,-990.52,0.00016712,3]
[402513113,1768691456192,-500.0,0.00016712,3]
[402513114,1768691456202,-500.0,0.00016712,3]
[402513115,1768691456212,-500.0,0.00016712,3]
[402513116,1768691456222,-500.0,0.00016712,3]
[402513117,1768691456231,-666.3,0.00016712,3]
[402513118,1768691456241,-500.0,0.00016712,3]
[402513119,1768691456251,-500.0,0.00016712,3]
[402513120,1768691456261,-744.84,0.00016712,3]
[402513121,1768691456271,-500.0,0.00016712,3]
[402513122,1768691456280,-500.0,0.00016712,3]
[402513123,1768691456289,-500.0,0.00016712,3]
[402513124,1768691456299,-594.53,0.00016712,3]
[402513125,1768691456308,-1215.26,0.00016712,3]
[402513126,1768691456318,-856.73,0.00016712,3]
[402513127,1768691456329,-501.82,0.00016712,3]
[402513128,1768691456338,-1021.5,0.00016712,3]
[402513129,1768691456347,-500.0,0.00016712,3]
[402513130,1768691456358,-500.0,0.00016712,3]
[402513131,1768691456367,-690.47,0.00016712,3]
[402513132,1768691456376,-500.0,0.00016712,3]
[402513133,1768691456387,-375.27196908,0.00016712,3]
[402513134,1768691456397,-500.0,0.00016712,3]
[402513135,1768691456407,-1042.34,0.00016712,3]
[402513136,1768691456416,-500.0,0.00016712,3]
[402513137,1768691456425,-2645.74,0.00016712,3]
[402513138,1768691456435,-500.0,0.00016712,3]
[402513139,1768691456444,-500.0,0.00016712,3]
[402513140,1768691456453,-852.82,0.00016712,3]
[402513141,1768691456463,-500.0,0.00016712,3]
[402513142,1768691456472,-500.0,0.00016712,3]
[402513143,1768691456481,-500.0,0.00016712,3]
[402513144,1768691456559,-11282.1,0.00016712,3]
[402513145,1768691456568,-500.0,0.00016712,3]
[402513146,1768691456577,-500.0,0.00016712,3]
[402513147,1768691456586,-2195.14,0.00016712,3]
[402513148,1768691456595,-500.0,0.00016712,3]
[402513149,1768691456605,-500.0,0.00016712,3]
[402513150,1768691456614,-253.82902155,0.00016712,3]
[402513151,1768691456623,-500.0,0.00016712,3]
[402513152,1768691456633,-715.41,0.00016712,3]
[402513153,1768691456642,-500.0,0.00016712,3]
[402513154,1768691456654,-516.14,0.00016712,3]
[402513155,1768691456663,-500.0,0.00016712,3]
[402513156,1768691456672,-500.0,0.00016712,3]
[402513157,1768691456682,-500.0,0.00016712,3]
[402513158,1768691456693,-500.0,0.00016712,3]
[402513159,1768691456703,-1769.73,0.00016712,3]
[402513160,1768691456713,-860.34,0.00016712,3]
[402513161,1768691456724,-1000.0,0.00016712,2]
[402513162,1768691456734,-500.0,0.00016712,3]
[402513163,1768691456743,-500.0,0.00016712,3]
[402513164,1768691456753,-500.0,0.00016712,3]
[402513165,1768691456762,-500.0,0.00016712,3]
[402513166,1768691456772,-667.3,0.00016712,3]
[402513167,1768691456782,-500.0,0.00016712,3]
[402513168,1768691456792,-726.73,0.00016712,3]
[402513169,1768691456803,-689.4,0.00016712,3]
[402513170,1768691456812,-500.0,0.00016712,3]
[402513171,1768691456823,-1022.32,0.00016712,3]
[402513172,1768691456833,-500.0,0.00016712,3]
[402513173,1768691456843,-500.0,0.00016712,3]
[402513174,1768691456854,-1162.08,0.00016712,3]
[402513175,1768691456864,-923.99,0.00016712,3]
[402513176,1768691456874,-637.68,0.00016712,3]
[402513177,1768691456883,-500.0,0.00016712,3]
[402513178,1768691456893,-500.0,0.00016712,3]
[402513179,1768691456903,-500.0,0.00016712,3]
[402513180,1768691456912,-500.0,0.00016712,3]
[402513181,1768691456922,-500.0,0.00016712,3]
[402513182,1768691456931,-500.0,0.00016712,3]
[402513183,1768691456941,-500.0,0.00016712,3]
[402513184,1768691456950,-500.0,0.00016712,3]
[402513185,1768691456960,-853.49,0.00016712,3]
[402513186,1768691456969,-500.0,0.00016712,3]
[402513187,1768691456979,-500.0,0.00016712,3]
[402513188,1768691456988,-500.0,0.00016712,3]
[402513189,1768691456997,-500.0,0.00016712,3]
[402513190,1768691457006,-197.20286288,0.00016712,3]
[402513191,1768691457016,-500.0,0.00016712,3]
[402513192,1768691457025,-500.0,0.00016712,3]
[402513193,1768691457034,-500.0,0.00016712,3]
[402513194,1768691457044,-500.0,0.00016712,3]
[402513195,1768691457053,-1040.56,0.00016712,3]
[402513196,1768691457063,-1200.0,0.00016712,2]
[402513197,1768691457074,-500.0,0.00016712,3]
[402513198,1768691457083,-782.26,0.00016712,3]
[402513199,1768691457092,-518.73687535,0.00016712,3]
[402513200,1768691457101,-583.8,0.00016712,3]
[402513201,1768691457110,-500.0,0.00016712,3]
[402513202,1768691457119,-500.0,0.00016712,3]
[402513203,1768691457128,-500.0,0.00016712,3]
[402513204,1768691457138,-967.62,0.00016712,3]
[402513205,1768691457147,-500.0,0.00016712,3]
[402513206,1768691457156,-500.0,0.00016712,3]
[402513207,1768691457165,-500.0,0.00016712,3]
[402513208,1768691457174,-500.0,0.00016712,3]
[402513209,1768691457183,-500.0,0.00016712,3]
[402513210,1768691457192,-788.23,0.00016712,3]
[402513211,1768691457202,-500.0,0.00016712,3]
[402513212,1768691457211,-596.26,0.00016712,3]
[402513213,1768691457219,-500.0,0.00016712,3]
[402513214,1768691457228,-500.0,0.00016712,3]
[402513215,1768691457238,-851.47,0.00016712,3]
[402513216,1768691457248,-500.0,0.00016712,3]
[402513217,1768691457260,-500.0,0.00016712,3]
[402513218,1768691457269,-852.94,0.00016712,3]
[402513219,1768691457278,-500.0,0.00016712,3]
[402513220,1768691457287,-500.0,0.00016712,3]
[402513221,1768691457296,-500.0,0.00016712,3]
[402513222,1768691457305,-951.59,0.00016712,3]
[402513223,1768691457314,-500.0,0.00016712,3]
[402513224,1768691457324,-500.0,0.00016712,3]
[402513225,1768691457334,-500.0,0.00016712,3]
[402513226,1768691457344,-500.0,0.00016712,3]
[402513227,1768691457353,-500.0,0.00016712,3]
[402513228,1768691457364,-1379.35,0.00016712,3]
[402513229,1768691457375,-560.83,0.00016712,3]
[402513230,1768691457384,-500.0,0.00016712,3]
[402513231,1768691457393,-500.0,0.00016712,3]
[402513232,1768691457402,-1126.76,0.00016712,3]
[402513233,1768691457412,-562.34469649,0.00016712,3]
[402513234,1768691457422,-918.79,0.00016712,3]
[402513235,1768691457431,-500.0,0.00016712,3]
[402513236,1768691457440,-500.0,0.00016712,3]
[402513237,1768691457448,-500.0,0.00016712,3]
[402513238,1768691457459,-594.52,0.00016712,3]
[402513239,1768691457468,-1276.22,0.00016712,3]
[402513240,1768691457477,-1203.88,0.00016712,3]
[402513241,1768691457487,-1815.02,0.00016712,3]
[402513242,1768691457497,-500.0,0.00016712,3]
[402513243,1768691457507,-500.0,0.00016712,3]
[402513244,1768691457517,-500.0,0.00016712,3]
[402513245,1768691457527,-500.0,0.00016712,3]
[402513246,1768691457537,-500.0,0.00016712,3]
[402513247,1768691457546,-500.0,0.00016712,3]
[402513248,1768691457555,-500.0,0.00016712,3]
[402513249,1768691457564,-1013.32,0.00016712,3]
[402513250,1768691457574,-500.0,0.00016712,3]
[402513251,1768691457582,-712.39,0.00016712,3]
[402513252,1768691457592,-2222.48,0.00016712,3]
[402513253,1768691457601,-500.0,0.00016712,3]
[402513254,1768691457610,-541.87987257,0.00016712,3]
[402513255,1768691457620,-500.0,0.00016712,3]
[402513256,1768691457629,-500.0,0.00016712,3]
[402513257,1768691457639,-517.45,0.00016712,3]
[402513258,1768691457651,-500.0,0.00016712,3]
[402513259,1768691457661,-678.68,0.00016712,3]
[402513260,1768691457671,-500.0,0.00016712,3]
[402513261,1768691457680,-500.0,0.00016712,3]
[402513262,1768691457692,-500.0,0.00016712,3]
[402513263,1768691457701,-500.0,0.00016712,3]
[402513264,1768691457711,-982.72,0.00016712,3]
[402513265,1768691457722,-500.0,0.00016712,3]
[402513266,1768691457733,-500.0,0.00016712,3]
[402513267,1768691457744,-500.0,0.00016712,3]
[402513268,1768691457755,-500.0,0.00016712,2]
[402513269,1768691457763,-500.0,0.00016712,3]
[402513270,1768691457773,-2086.12,0.00016712,3]
[402513271,1768691457782,-500.0,0.00016712,3]
[402513272,1768691457790,-664.88,0.00016712,3]
[402513273,1768691457799,-575.2,0.00016712,3]
[402513274,1768691457808,-500.0,0.00016712,3]
[402513275,1768691457818,-1177.19,0.00016712,3]
[402513276,1768691457828,-500.0,0.00016712,2]
[402513277,1768691457837,-905.84,0.00016712,3]
[402513278,1768691457846,-500.0,0.00016712,3]
[402513279,1768691457856,-1325.56,0.00016712,3]
[402513280,1768691457865,-500.0,0.00016712,3]
[402513281,1768691457874,-594.23,0.00016712,3]
[402513282,1768691457884,-500.0,0.00016712,2]
[402513283,1768691457893,-500.0,0.00016712,3]
[402513284,1768691457902,-500.0,0.00016712,3]
[402513285,1768691457911,-551.81,0.00016712,3]
[402513286,1768691457921,-500.0,0.00016712,3]
[402513287,1768691457931,-1252.44,0.00016712,3]
[402513288,1768691457940,-500.0,0.00016712,3]
[402513289,1768691457950,-531.66,0.00016712,3]
[402513290,1768691457960,-500.0,0.00016712,3]
[402513291,1768691457969,-815.04,0.00016712,3]
[402513292,1768691457980,-500.0,0.00016712,3]
[402513293,1768691457989,-734.94,0.00016712,3]
[402513294,1768691457998,-158.45,0.00016712,3]
[402513295,1768691458009,-500.0,0.00016712,3]
[402513296,1768691458019,-595.86,0.00016712,3]
[402513297,1768691458029,-500.0,0.00016712,3]
[402513298,1768691458038,-153.0,0.00016712,2]
[402513299,1768691458047,-823.0,0.00016714,2]
[402513300,1768691458056,-239.3795717,0.00016721,2]
[402513301,1768691458065,-168.0,0.00016732,2]
[402513302,1768691458075,-168.0,0.00016808,2]
[402513303,1768691458084,-219.08,0.00016808,7]
[402513304,1768691458093,-168.0,0.0001685,2]
[402513305,1768691458103,-200.0,0.00016985,2]
[402513306,1768691458112,-500.0,0.00016986,2]
[402513307,1768691458122,-499.44798613,0.00016986,3]
[402513308,1768691458132,-500.0,0.00016986,3]
[402513309,1768691458143,-500.0,0.00016986,3]
[402513310,1768691458152,-500.0,0.00016986,3]
[402513311,1768691458162,-500.0,0.00016986,3]
[402513312,1768691458172,-500.0,0.00016986,3]
[402513313,1768691458181,-500.0,0.00016986,3]
[402513314,1768691458190,-500.0,0.00016986,3]
[402513315,1768691458199,-500.0,0.00016986,3]
[402513316,1768691458209,-672.35,0.00016986,3]
[402513317,1768691458219,-500.0,0.00016986,3]
[402513318,1768691458228,-500.0,0.00016986,3]
[402513319,1768691458237,-500.0,0.00016986,3]
[402513320,1768691458247,-1215.26,0.00016986,3]
[402513321,1768691458257,-500.0,0.00016986,3]
[402513322,1768691458270,-687.45,0.00016986,3]
[402513323,1768691458279,-500.0,0.00016986,3]
[402513324,1768691458288,-500.0,0.00016986,3]
[402513325,1768691458297,-777.4,0.00016986,3]
[402513326,1768691458307,-500.0,0.00016986,3]
[402513327,1768691458316,-728.54,0.00016986,3]
[402513328,1768691458325,-1111.78,0.00016986,3]
[402513329,1768691458333,-732.82,0.00016986,3]
[402513330,1768691458342,-657.38,0.00016986,3]
[402513331,1768691458351,-541.1,0.00016986,3]
[402513332,1768691458361,-500.0,0.00016986,3]
[402513333,1768691458370,-599.24,0.00016986,3]
[402513334,1768691458380,-500.0,0.00016986,3]
[402513335,1768691458390,-500.0,0.00016986,3]
[402513336,1768691458399,-1000.0,0.00016986,2]
[402513337,1768691458408,-1143.69,0.00016986,3]
[402513338,1768691458417,-500.0,0.00016986,3]
[402513339,1768691458428,-500.0,0.00016986,3]
[402513340,1768691458439,-500.0,0.00016986,3]
[402513341,1768691458448,-500.0,0.00016986,3]
[402513342,1768691458457,-500.0,0.00016986,3]
[402513343,1768691458465,-500.0,0.00016986,3]
[402513344,1768691458474,-597.31,0.00016986,3]
[402513345,1768691458483,-500.0,0.00016986,3]
[402513346,1768691458492,-500.0,0.00016986,3]
[402513347,1768691458501,-500.0,0.00016986,3]
[402513348,1768691458510,-500.0,0.00016986,3]
[402513349,1768691458519,-500.0,0.00016986,3]
[402513350,1768691458528,-500.0,0.00016986,3]
[402513351,1768691458537,-849.25,0.00016986,3]
[402513352,1768691458546,-500.0,0.00016986,3]
[402513353,1768691458556,-634.83,0.00016986,3]
[402513354,1768691458565,-575.03830885,0.00016986,3]
[402513355,1768691458574,-500.0,0.00016986,3]
[402513356,1768691458584,-500.0,0.00016986,3]
[402513357,1768691458593,-500.0,0.00016986,3]
[402513358,1768691458602,-500.0,0.00016986,3]
[402513359,1768691458615,-993.42,0.00016986,3]
[402513360,1768691458624,-526.47,0.00016986,3]
[402513361,1768691458634,-500.0,0.00016986,3]
[402513362,1768691458648,-500.0,0.00016986,3]
[402513363,1768691458660,-630.37,0.00016986,3]
[402513364,1768691458670,-500.0,0.00016986,3]
[402513365,1768691458679,-500.0,0.00016986,3]
[402513366,1768691458688,-500.0,0.00016986,3]
[402513367,1768691458698,-500.0,0.00016986,3]
[402513368,1768691458708,-1066.29,0.00016986,3]
[402513369,1768691458717,-500.0,0.00016986,3]
[402513370,1768691458728,-500.0,0.00016986,3]
[402513371,1768691458737,-500.0,0.00016986,3]
[402513372,1768691458747,-673.95,0.00016986,3]
[402513373,1768691458756,-151.0,0.00016986,2]
[402513374,1768691458765,-544.27,0.00016986,3]
[402513375,1768691458775,-500.0,0.00016986,3]
[402513376,1768691458784,-500.0,0.00016986,3]
[402513377,1768691458794,-500.0,0.00016986,3]
[402513378,1768691458803,-500.0,0.00016986,3]
[402513379,1768691458812,-1281.71,0.00016986,3]
[402513380,1768691458820,-500.0,0.00016986,3]
[402513381,1768691458828,-539.04,0.00016986,3]
[402513382,1768691458837,-949.67,0.00016986,3]
[402513383,1768691458846,-545.08,0.00016986,3]
[402513384,1768691458855,-500.0,0.00016986,3]
[402513385,1768691458865,-827.01,0.00016986,3]
[402513386,1768691458875,-500.0,0.00016986,3]
[402513387,1768691458884,-717.54,0.00016986,3]
[402513388,1768691458894,-500.0,0.00016986,3]
[402513389,1768691458904,-500.0,0.00016986,3]
[402513390,1768691458913,-500.0,0.00016986,3]
[402513391,1768691458923,-500.0,0.00016986,3]
[402513392,1768691458932,-500.0,0.00016986,3]
[402513393,1768691458942,-500.0,0.00016986,3]
[402513394,1768691458951,-500.0,0.00016986,3]
[402513395,1768691458961,-500.0,0.00016986,3]
[402513396,1768691458971,-774.29,0.00016986,3]
[402513397,1768691458981,-500.0,0.00016986,3]
[402513398,1768691458991,-617.13,0.00016986,3]
[402513399,1768691459001,-500.0,0.00016986,3]
[402513400,1768691459010,-201.58031394,0.00016986,3]
[402513401,1768691459020,-621.29598782,0.00016986,3]
[402513402,1768691459030,-500.0,0.00016986,3]
[402513403,1768691459039,-500.0,0.00016986,3]
[402513404,1768691459049,-500.0,0.00016986,3]
[402513405,1768691459058,-500.0,0.00016986,3]
[402513406,1768691459068,-500.0,0.00016986,3]
[402513407,1768691459078,-605.41,0.00016986,3]
[402513408,1768691459087,-1154.77,0.00016986,3]
[402513409,1768691459097,-500.0,0.00016986,3]
[402513410,1768691459107,-500.0,0.00016986,3]
[402513411,1768691459116,-500.0,0.00016986,3]
[402513412,1768691459125,-500.0,0.00016986,3]
[402513413,1768691459135,-500.0,0.00016986,3]
[402513414,1768691459144,-500.0,0.00016986,3]
[402513415,1768691459154,-500.0,0.00016986,3]
[402513416,1768691459164,-622.85,0.00016986,3]
[402513417,1768691459173,-500.0,0.00016986,3]
[402513418,1768691459183,-896.84,0.00016986,3]
[402513419,1768691459192,-500.0,0.00016986,3]
[402513420,1768691459202,-500.0,0.00016986,3]
[402513421,1768691459211,-500.0,0.00016986,3]
[402513422,1768691459220,-500.0,0.00016986,3]
[402513423,1768691459230,-500.0,0.00016986,3]
[402513424,1768691459240,-500.0,0.00016986,3]
[402513425,1768691459250,-810.73,0.00016986,3]
[402513426,1768691459259,-565.9,0.00016986,3]
[402513427,1768691459269,-711.59,0.00016986,3]
[402513428,1768691459279,-557.58,0.00016986,3]
[402513429,1768691459295,-500.0,0.00016986,3]
[402513430,1768691459309,-500.0,0.00016986,3]
[402513431,1768691459319,-500.0,0.00016986,3]
[402513432,1768691459329,-500.0,0.00016986,3]
[402513433,1768691459339,-539.58941643,0.00016986,3]
[402513434,1768691459349,-500.0,0.00016986,3]
[402513435,1768691459359,-500.0,0.00016986,3]
[402513436,1768691459369,-500.0,0.00016986,3]
[402513437,1768691459379,-1269.92,0.00016986,3]
[402513438,1768691459389,-500.0,0.00016986,3]
[402513439,1768691459402,-500.0,0.00016986,3]
[402513440,1768691459412,-1067.93,0.00016986,3]
[402513441,1768691459421,-931.9,0.00016986,3]
[402513442,1768691459431,-528.88,0.00016986,3]
[402513443,1768691459441,-658.25,0.00016986,3]
[402513444,1768691459451,-1013.76,0.00016986,3]
[402513445,1768691459460,-500.0,0.00016986,3]
[402513446,1768691459470,-1748.11,0.00016986,3]
[402513447,1768691459480,-500.0,0.00016986,3]
[402513448,1768691459490,-500.0,0.00016986,3]
[402513449,1768691459500,-500.0,0.00016986,3]
[402513450,1768691459510,-774.47,0.00016986,3]
[402513451,1768691459520,-500.0,0.00016986,3]
[402513452,1768691459530,-500.0,0.00016986,3]
[402513453,1768691459540,-500.0,0.00016986,3]
[402513454,1768691459550,-622.71,0.00016986,3]
[402513455,1768691459560,-500.0,0.00016986,3]
[402513456,1768691459570,-500.0,0.00016986,3]
[402513457,1768691459579,-597.8010965,0.00016986,3]
[402513458,1768691459589,-500.0,0.00016986,3]
[402513459,1768691459599,-500.0,0.00016986,3]
[402513460,1768691459609,-500.0,0.00016986,3]
[402513461,1768691459620,-500.0,0.00016986,3]
[402513462,1768691459631,-500.0,0.00016986,3]
[402513463,1768691459642,-556.65,0.00016986,3]
[402513464,1768691459652,-500.0,0.00016986,3]
[402513465,1768691459662,-500.0,0.00016986,3]
[402513466,1768691459675,-983.41,0.00016986,3]
[402513467,1768691459686,-500.0,0.00016986,3]
[402513468,1768691459696,-500.0,0.00016986,3]
[402513469,1768691459707,-500.0,0.00016986,3]
[402513470,1768691459717,-500.0,0.00016986,3]
[402513471,1768691459728,-542.29,0.00016986,3]
[402513472,1768691459740,-500.0,0.00016986,3]
[402513473,1768691459750,-500.0,0.00016986,3]
[402513474,1768691459760,-500.0,0.00016986,3]
[402513475,1768691459770,-500.0,0.00016986,3]
[402513476,1768691459780,-500.0,0.00016986,3]
[402513477,1768691459790,-500.0,0.00016986,3]
[402513478,1768691459800,-798.42,0.00016986,3]
[402513479,1768691459810,-500.0,0.00016986,3]
[402513480,1768691459820,-500.0,0.00016986,3]
[402513481,1768691459831,-500.0,0.00016986,3]
[402513482,1768691459841,-922.41,0.00016986,3]
[402513483,1768691459851,-500.0,0.00016986,3]
[402513484,1768691459862,-500.0,0.00016986,3]
[402513485,1768691459873,-500.0,0.00016986,3]
[402513486,1768691459883,-500.0,0.00016986,3]
[402513487,1768691459894,-500.0,0.00016986,3]
[402513488,1768691459904,-500.0,0.00016986,3]
[402513489,1768691459915,-970.72,0.00016986,3]
[402513490,1768691459924,-500.0,0.00016986,3]
[402513491,1768691459934,-754.78,0.00016986,3]
[402513492,1768691459945,-500.0,0.00016986,3]
[402513493,1768691459955,-220.77009767,0.00016986,3]
[402513494,1768691459965,-945.93,0.00016986,3]
[402513495,1768691459976,-500.0,0.00016986,3]
[402513496,1768691459986,-500.0,0.00016986,3]
[402513497,1768691459996,-824.14,0.00016986,3]
[402513498,1768691460006,-500.0,0.00016986,3]
[402513499,1768691460017,-546.17,0.00016986,3]
[402513500,1768691460027,-876.78,0.00016986,3]
[402513501,1768691460037,-500.0,0.00016986,3]
[402513502,1768691460048,-500.0,0.00016986,3]
[402513503,1768691460058,-500.0,0.00016986,3]
[402513504,1768691460068,-500.0,0.00016986,3]
[402513505,1768691460078,-617.55,0.00016986,3]
[402513506,1768691460088,-500.0,0.00016986,3]
[402513507,1768691460098,-510.15,0.00016986,3]
[402513508,1768691460108,-500.0,0.00016986,3]
[402513509,1768691460118,-913.35,0.00016986,3]
[402513510,1768691460128,-693.96,0.00016986,3]
[402513511,1768691460139,-500.0,0.00016986,3]
[402513512,1768691460149,-500.0,0.00016986,3]
[402513513,1768691460160,-500.0,0.00016986,3]
[402513514,1768691460173,-500.0,0.00016986,3]
[402513515,1768691460183,-916.67,0.00016986,3]
[402513516,1768691460193,-581.05,0.00016986,3]
[402513517,1768691460204,-500.0,0.00016986,3]
[402513518,1768691460214,-500.0,0.00016986,3]
[402513519,1768691460225,-917.71,0.00016986,3]
[402513520,1768691460235,-500.0,0.00016986,3]
[402513521,1768691460245,-497.71228405,0.00016986,3]
[402513522,1768691460255,-500.0,0.00016986,3]
[402513523,1768691460266,-500.0,0.00016986,3]
[402513524,1768691460277,-500.0,0.00016986,3]
[402513525,1768691460287,-514.23188033,0.00016986,3]
[402513526,1768691460297,-1201.98,0.00016986,3]
[402513527,1768691460307,-500.0,0.00016986,3]
[402513528,1768691460317,-971.31,0.00016986,3]
[402513529,1768691460327,-605.08,0.00016986,3]
[402513530,1768691460337,-649.25,0.00016986,3]
[402513531,1768691460347,-500.0,0.00016986,3]
[402513532,1768691460359,-500.0,0.00016986,3]
[402513533,1768691460371,-500.0,0.00016986,3]
[402513534,1768691460381,-561.99,0.00016986,3]
[402513535,1768691460391,-500.0,0.00016986,3]
[402513536,1768691460401,-500.0,0.00016986,3]
[402513537,1768691460411,-500.0,0.00016986,3]
[402513538,1768691460420,-500.0,0.00016986,3]
[402513539,1768691460430,-500.0,0.00016986,3]
[402513540,1768691460440,-669.06,0.00016986,3]
[402513541,1768691460450,-500.0,0.00016986,3]
[402513542,1768691460460,-500.0,0.00016986,3]
[402513543,1768691460471,-500.0,0.00016986,3]
[402513544,1768691460481,-532.66063458,0.00016986,3]
[402513545,1768691460491,-489.41292271,0.00016986,3]
[402513546,1768691460501,-500.0,0.00016986,3]
[402513547,1768691460511,-1306.09,0.00016986,3]
[402513548,1768691460521,-500.0,0.00016986,3]
[402513549,1768691460532,-530.80700199,0.00016986,3]
[402513550,1768691460542,-500.0,0.00016986,3]
[402513551,1768691460552,-1171.55,0.00016986,3]
[402513552,1768691460562,-500.0,0.00016986,3]
[402513553,1768691460573,-500.0,0.00016986,3]
[402513554,1768691460583,-500.0,0.00016986,3]
[402513555,1768691460593,-754.74,0.00016986,3]
[402513556,1768691460603,-500.0,0.00016986,3]
[402513557,1768691460613,-500.0,0.00016986,3]
[402513558,1768691460623,-1510.73,0.00016986,3]
[402513559,1768691460633,-500.0,0.00016986,3]
[402513560,1768691460643,-500.0,0.00016986,3]
[402513561,1768691460653,-385.72,0.00016986,2]
[402513562,1768691460669,-500.0,0.00016986,3]
[402513563,1768691460678,-573.95,0.00016986,3]
[402513564,1768691460688,-553.34,0.00016986,3]
[402513565,1768691460698,-500.0,0.00016986,3]
[402513566,1768691460710,-500.0,0.00016986,3]
[402513567,1768691460720,-500.0,0.00016986,3]
[402513568,1768691460730,-500.0,0.00016986,3]
[402513569,1768691460740,-500.0,0.00016986,3]
[402513570,1768691460750,-1435.4,0.00016986,3]
[402513571,1768691460760,-500.0,0.00016986,3]
[402513572,1768691460770,-500.0,0.00016986,3]
[402513573,1768691460779,-536.7,0.00016986,3]
[402513574,1768691460790,-500.0,0.00016986,3]
[402513575,1768691460799,-1218.98,0.00016986,3]
[402513576,1768691460809,-833.25,0.00016986,3]
[402513577,1768691460819,-974.13,0.00016986,3]
[402513578,1768691460830,-500.0,0.00016986,3]
[402513579,1768691460841,-408.02411447,0.00016986,3]
[402513580,1768691460851,-500.0,0.00016986,3]
[402513581,1768691460861,-500.0,0.00016986,3]
[402513582,1768691460872,-500.0,0.00016986,3]
[402513583,1768691460883,-500.0,0.00016986,3]
[402513584,1768691460895,-500.0,0.00016986,3]
[402513585,1768691460905,-1075.71,0.00016986,3]
[402513586,1768691460915,-627.77,0.00016986,3]
[402513587,1768691460926,-500.0,0.00016986,3]
[402513588,1768691460936,-500.0,0.00016986,3]
[402513589,1768691460946,-1034.68,0.00016986,3]
[402513590,1768691460956,-500.0,0.00016986,3]
[402513591,1768691460967,-500.0,0.00016986,3]
[402513592,1768691460977,-1046.83,0.00016986,3]
[402513593,1768691460989,-500.0,0.00016986,3]
[402513594,1768691461000,-500.0,0.00016986,3]
[402513595,1768691461010,-500.0,0.00016986,3]
[402513596,1768691461020,-566.61,0.00016986,3]
[402513597,1768691461032,-565.41,0.00016986,3]
[402513598,1768691461267,-500.0,0.00016986,3]
[402513599,1768691461277,-500.0,0.00016986,3]
[402513600,1768691461286,-676.05,0.00016986,3]
[402513601,1768691461295,-500.0,0.00016986,3]
[402513602,1768691461305,-500.0,0.00016986,3]
[402513603,1768691461314,-500.0,0.00016986,3]
[402513604,1768691461323,-500.0,0.00016986,3]
[402513605,1768691461333,-542.31,0.00016986,3]
[402513606,1768691461342,-1077.68,0.00016986,3]
[402513607,1768691461351,-1557.4,0.00016986,3]
[402513608,1768691461361,-500.0,0.00016986,3]
[402513609,1768691461370,-500.0,0.00016986,3]